fUSD/lending_fUSD_20250905
["ID","MTS","AMOUNT","RATE_DAILY","PERIOD"]
[383662992,1757076659221,-353442.159593,0.000249,2]
[383662993,1757076659231,-4919.50154429,0.000249,2]
[383662994,1757076659241,-10664.22153337,0.000249,2]
[383662995,1757076659505,-502.47039619,0.000249,2]
[383662996,1757076659517,-378.75681173,0.000249,2]
[383662997,1757076659529,-983.78513024,0.000249,2]
[383662998,1757076659542,-3840.45164835,0.000249,2]
[383663000,1757076783823,-156.0,0.00022,2]
[383663001,1757076783847,-118.86900456,0.00022,2]
[383663002,1757076788526,-1000.0,0.00022,2]
[383663003,1757076791552,-337.02693099,0.00022,2]
[383663004,1757076797380,-1396.82654337,0.00022,2]
[383663005,1757076800588,-290.58,0.00022,2]
[383663006,1757076804254,-800.0,0.00022,2]
[383663007,1757076807164,-472.03,0.00022,2]
[383663008,1757076808889,-460.196757,0.00022,2]
[383663009,1757076812091,-290.58,0.00022,2]
[383663010,1757076814754,-152.0,0.00022,2]
[383663011,1757076816426,-300.0,0.00022,2]
[383663012,1757076821727,-265.98669963,0.00022,2]
[383663013,1757076823558,-156.7,0.00022,2]
[383663014,1757076827380,-325.62415216,0.00022,2]
[383663015,1757076835453,151.38,0.00013699,2]
[383663016,1757076876308,500.0,0.00019178,2]
[383663017,1757077095555,625.69014421,0.00030136,120]
[383663024,1757077405702,154.41,0.00011244,2]
[383663025,1757077405924,154.41,0.00013118,2]
[383663026,1757077406166,154.41,0.00014992,2]
[383663027,1757077406400,154.41,0.00016866,2]
[383663028,1757077406594,154.41,0.0001874,2]
[383663029,1757077446502,249.24226178,0.00018646,2]
[383663030,1757077468512,190.66,0.00016712,2]
[383663032,1757077555122,-237.90611291,0.00020272,2]
[383663033,1757077557408,-300.0,0.00020272,2]
[383663034,1757077577432,250.0,0.00015,2]
[383663035,1757077578540,300.0,0.00017,2]
[383663036,1757077587017,-212.09388709,0.00020272,2]
[383663045,1757077831565,-418.0,0.00020273,2]
[383663047,1757077831575,-300.0,0.00020273,2]
[383663049,1757077831584,-300.0,0.00020273,2]
[383663051,1757077831594,-1200.0,0.00020273,2]
[383663053,1757077831603,-500.0,0.00020274,2]
[383663055,1757077831612,-53956.9625249,0.00020274,2]
[383663062,1757077831671,-2186.56342063,0.00020274,2]
[383663074,1757077831780,-698.58516466,0.00020274,2]
[383663076,1757077831792,-51768.57544581,0.00020274,2]
[383663078,1757077831801,-154.41,0.00020614,2]
[383663080,1757077831810,-500.0,0.0002115,2]
[383663082,1757077831819,-500.0,0.0002115,2]
[383663084,1757077831828,-500.0,0.0002115,2]
[383663086,1757077831837,-500.0,0.0002115,2]
[383663087,1757077831847,-500.0,0.0002137,2]
[383663088,1757077831857,-932.7739757,0.00021698,2]
[383663089,1757077831866,-1000.0,0.00021698,2]
[383663090,1757077831875,-250.0,0.00021698,2]
[383663091,1757077831884,-446.63832857,0.00021714,2]
[383663092,1757077831894,-246.16005681,0.00021987,2]
[383663093,1757077831903,-266.22203707,0.00021999,2]
[383663094,1757077831913,-153.28907641,0.00021999,2]
[383663095,1757077831922,-156.0,0.00022,2]
[383663096,1757077831931,-495.24,0.00022007,2]
[383663097,1757077831940,-420.0,0.00022069,2]
[383663098,1757077831949,-224.38,0.000221,2]
[383663099,1757077831959,-600.0,0.0002211,2]
[383663100,1757077831968,-1680.0,0.00022175,2]
[383663101,1757077831977,-1000.0,0.00022246,2]
[383663102,1757077831987,-9912.96,0.00022328,2]
[383663103,1757077831996,-170.48,0.00022356,2]
[383663104,1757077832006,-161.17,0.00022367,2]
[383663105,1757077832015,-500.0,0.00022466,2]
[383663106,1757077832024,-154.41,0.00022488,2]
[383663107,1757077832034,-500.0,0.00022555,2]
[383663108,1757077832043,-600.0,0.00022658,2]
[383663109,1757077832053,-156.0,0.00023014,7]
[383663111,1757077832062,-495.24,0.00023108,2]
[383663112,1757077832072,-212.9360063,0.00023313,7]
[383663114,1757077832082,-1604.26691878,0.00023561,2]
[383663116,1757077832091,-500.0,0.00023562,2]
[383663117,1757077832101,-151.0,0.00023658,2]
[383663118,1757077832110,-248.71531821,0.00023658,2]
[383663119,1757077832119,-4475.2302939,0.00023658,2]
[383663120,1757077832128,-151.0,0.00023658,2]
[383663121,1757077832139,-224.38,0.00024,2]
[383663122,1757077832148,-587.0,0.00024024,2]
[383663123,1757077832157,-180.4,0.00024042,2]
[383663124,1757077832167,-13045.49554193,0.00024077,2]
[383663125,1757077832177,-569.19,0.00024103,2]
[383663126,1757077832186,-1600.98,0.00024103,2]
[383663127,1757077832196,-866.22086724,0.00024157,2]
[383663128,1757077832205,-151.0,0.00024206,2]
[383663129,1757077832214,-495.24,0.00024208,2]
[383663130,1757077832223,-216.0,0.00024254,2]
[383663131,1757077832232,-336.75609389,0.00024291,2]
[383663132,1757077832257,-445.50936392,0.00024291,2]
[383663133,1757077832267,-797.89371551,0.000244,2]
[383663134,1757077832278,-687.4133083,0.000244,2]
[383663142,1757077839636,-368.69297619,0.000244,2]
[383663143,1757077839647,-165.69,0.00024403,2]
[383663144,1757077839658,-1002.0,0.000245,3]
[383663145,1757077839667,-186.35542595,0.00024556,2]
[383663146,1757077839676,-18149.21567604,0.00024557,2]
[383663147,1757077839684,-782.26545782,0.00024584,2]
[383663148,1757077839693,-1374.72,0.0002459,2]
[383663149,1757077839701,-200.0,0.000246,8]
[383663150,1757077839710,-155.25795897,0.000246,2]
[383663151,1757077839718,-195.72,0.00024647,2]
[383663152,1757077839726,-349.31918,0.0002465,2]
[383663153,1757077839734,-1425.0,0.00024654,2]
[383663154,1757077839743,-400.0,0.00024657,2]
[383663155,1757077839752,-400.0,0.00024657,2]
[383663156,1757077839760,-400.0,0.00024657,2]
[383663157,1757077839769,-400.0,0.00024657,2]
[383663158,1757077839778,-500.0,0.00024657,2]
[383663159,1757077839787,-400.0,0.00024657,2]
[383663160,1757077839795,-400.0,0.00024657,2]
[383663161,1757077839804,-400.0,0.00024657,2]
[383663162,1757077839812,-422.94639267,0.00024657,2]
[383663163,1757077839821,-400.0,0.00024657,2]
[383663164,1757077839830,-400.0,0.00024657,2]
[383663165,1757077839839,-400.0,0.00024657,2]
[383663166,1757077839847,-400.0,0.00024657,2]
[383663167,1757077839855,-400.0,0.00024657,2]
[383663168,1757077839864,-400.0,0.00024657,2]
[383663169,1757077839872,-400.0,0.00024657,2]
[383663170,1757077839881,-400.0,0.00024657,2]
[383663171,1757077839890,-400.0,0.00024657,2]
[383663172,1757077839899,-400.0,0.00024657,2]
[383663173,1757077839908,-400.0,0.00024657,2]
[383663174,1757077839917,-408.43713148,0.00024657,2]
[383663175,1757077839927,-400.0,0.00024657,2]
[383663176,1757077839936,-400.0,0.00024657,2]
[383663177,1757077839946,-400.0,0.00024657,2]
[383663178,1757077839956,-400.0,0.00024657,2]
[383663179,1757077839965,-400.0,0.00024657,2]
[383663181,1757077839974,-400.0,0.00024657,2]
[383663183,1757077839984,-400.0,0.00024657,2]
[383663185,1757077839994,-400.0,0.00024657,2]
[383663187,1757077840003,-400.0,0.00024657,2]
[383663189,1757077840012,-400.0,0.00024657,2]
[383663191,1757077840021,-400.0,0.00024657,2]
[383663193,1757077840030,-400.0,0.00024657,2]
[383663195,1757077840040,-400.0,0.00024657,2]
[383663198,1757077840049,-400.0,0.00024657,2]
[383663200,1757077840059,-400.0,0.00024657,2]
[383663202,1757077840068,-400.0,0.00024657,2]
[383663203,1757077840077,-400.0,0.00024657,2]
[383663206,1757077840087,-400.0,0.00024657,2]
[383663208,1757077840097,-400.0,0.00024657,2]
[383663209,1757077840106,-400.0,0.00024657,2]
[383663212,1757077840116,-400.0,0.00024657,2]
[383663214,1757077840125,-400.0,0.00024657,2]
[383663216,1757077840134,-400.0,0.00024657,2]
[383663217,1757077840144,-400.0,0.00024657,2]
[383663220,1757077840153,-407.67234105,0.00024657,2]
[383663222,1757077840163,-400.0,0.00024657,2]
[383663223,1757077840172,-400.0,0.00024657,2]
[383663225,1757077840181,-400.0,0.00024657,2]
[383663228,1757077840191,-400.0,0.00024657,2]
[383663230,1757077840200,-400.0,0.00024657,2]
[383663232,1757077840209,-400.0,0.00024657,2]
[383663234,1757077840219,-400.0,0.00024657,2]
[383663235,1757077840228,-400.0,0.00024657,2]
[383663238,1757077840238,-400.0,0.00024657,2]
[383663239,1757077840247,-400.0,0.00024657,2]
[383663241,1757077840257,-402.46074085,0.00024657,2]
[383663243,1757077840266,-500.0,0.00024657,2]
[383663245,1757077840276,-400.0,0.00024657,2]
[383663247,1757077840285,-400.0,0.00024657,2]
[383663249,1757077840295,-401.74074663,0.00024657,2]
[383663251,1757077840304,-400.0,0.00024657,2]
[383663253,1757077840314,-400.0,0.00024657,2]
[383663255,1757077840324,-400.0,0.00024657,2]
[383663257,1757077840333,-400.0,0.00024657,2]
[383663259,1757077840343,-400.0,0.00024657,2]
[383663261,1757077840353,-400.0,0.00024657,2]
[383663263,1757077840363,-400.0,0.00024657,2]
[383663265,1757077840373,-400.0,0.00024657,2]
[383663267,1757077840384,-400.0,0.00024657,2]
[383663269,1757077840394,-400.0,0.00024657,2]
[383663271,1757077840404,-400.0,0.00024657,2]
[383663273,1757077840414,-400.0,0.00024657,2]
[383663275,1757077840424,-400.0,0.00024657,2]
[383663277,1757077840433,-400.0,0.00024657,2]
[383663279,1757077840442,-624.24,0.00024657,2]
[383663281,1757077840451,-1021.95,0.00024657,2]
[383663283,1757077840460,-400.0,0.00024657,2]
[383663285,1757077840470,-400.0,0.00024657,2]
[383663287,1757077840482,-400.0,0.00024657,2]
[383663289,1757077840491,-400.0,0.00024657,2]
[383663291,1757077840501,-400.0,0.00024657,2]
[383663293,1757077840510,-381.83534835,0.00024657,2]
[383663295,1757077840521,-400.0,0.00024657,2]
[383663297,1757077840530,-400.0,0.00024657,2]
[383663299,1757077840539,-400.0,0.00024657,2]
[383663301,1757077840547,-400.0,0.00024657,2]
[383663303,1757077840557,-400.0,0.00024657,2]
[383663305,1757077840566,-400.0,0.00024657,2]
[383663307,1757077840575,-400.0,0.00024657,2]
[383663309,1757077840585,-400.0,0.00024657,2]
[383663311,1757077840598,-400.0,0.00024657,2]
[383663313,1757077840607,-400.0,0.00024657,2]
[383663315,1757077840616,-404.8253181,0.00024657,2]
[383663317,1757077840625,-400.0,0.00024657,2]
[383663319,1757077840634,-400.0,0.00024657,2]
[383663321,1757077840644,-401.82185461,0.00024657,2]
[383663323,1757077840654,-400.0,0.00024657,2]
[383663325,1757077840665,-400.0,0.00024657,2]
[383663327,1757077840674,-404.40345433,0.00024657,2]
[383663329,1757077840684,-400.0,0.00024657,2]
[383663331,1757077840693,-400.0,0.00024657,2]
[383663333,1757077840704,-400.0,0.00024657,2]
[383663335,1757077840714,-400.0,0.00024657,2]
[383663337,1757077840723,-400.0,0.00024657,2]
[383663339,1757077840733,-400.0,0.00024657,2]
[383663341,1757077840742,-400.0,0.00024657,2]
[383663343,1757077840751,-400.0,0.00024657,2]
[383663345,1757077840760,-357.43573664,0.00024657,2]
[383663347,1757077840770,-400.0,0.00024657,2]
[383663349,1757077840779,-400.0,0.00024657,2]
[383663351,1757077840789,-400.0,0.00024657,2]
[383663353,1757077840799,-400.0,0.00024657,2]
[383663355,1757077840808,-400.0,0.00024657,2]
[383663358,1757077840818,-400.0,0.00024657,2]
[383663360,1757077840832,-400.0,0.00024657,2]
[383663362,1757077840841,-400.0,0.00024657,2]
[383663364,1757077840852,-400.0,0.00024657,2]
[383663366,1757077840862,-400.0,0.00024657,2]
[383663368,1757077840872,-400.0,0.00024657,2]
[383663370,1757077840881,-400.0,0.00024657,2]
[383663372,1757077840890,-400.0,0.00024657,2]
[383663374,1757077840900,-411.35418086,0.00024657,2]
[383663376,1757077840910,-400.0,0.00024657,2]
[383663377,1757077840920,-400.0,0.00024657,2]
[383663378,1757077840930,-400.0,0.00024657,2]
[383663379,1757077840939,-400.0,0.00024657,2]
[383663380,1757077840948,-400.0,0.00024657,2]
[383663381,1757077840958,-400.0,0.00024657,2]
[383663382,1757077840968,-212.82769244,0.00024657,2]
[383663383,1757077840977,-410.84864475,0.00024657,2]
[383663384,1757077840987,-400.0,0.00024657,2]
[383663385,1757077840997,-400.0,0.00024657,2]
[383663386,1757077841007,-400.0,0.00024657,2]
[383663387,1757077841017,-400.0,0.00024657,2]
[383663388,1757077841026,-400.0,0.00024657,2]
[383663389,1757077841036,-400.0,0.00024657,2]
[383663390,1757077841045,-400.0,0.00024657,2]
[383663391,1757077841058,-400.0,0.00024657,2]
[383663392,1757077841068,-348.76086628,0.00024657,2]
[383663393,1757077841077,-400.0,0.00024657,2]
[383663394,1757077841087,-400.0,0.00024657,2]
[383663395,1757077841096,-400.0,0.00024657,2]
[383663396,1757077841106,-400.0,0.00024657,2]
[383663397,1757077841115,-391.49194496,0.00024657,2]
[383663398,1757077841125,-400.0,0.00024657,2]
[383663399,1757077841135,-400.0,0.00024657,2]
[383663400,1757077841145,-400.0,0.00024657,2]
[383663401,1757077841156,-400.0,0.00024657,2]
[383663402,1757077841166,-400.0,0.00024657,2]
[383663403,1757077841176,-400.0,0.00024657,2]
[383663404,1757077841187,-400.0,0.00024657,2]
[383663405,1757077841196,-400.0,0.00024657,2]
[383663406,1757077841206,-400.0,0.00024657,2]
[383663407,1757077841216,-400.0,0.00024657,2]
[383663408,1757077841227,-400.0,0.00024657,2]
[383663409,1757077841236,-400.0,0.00024657,2]
[383663410,1757077841246,-400.0,0.00024657,2]
[383663411,1757077841256,-500.0,0.00024657,2]
[383663412,1757077841265,-407.32080497,0.00024657,2]
[383663413,1757077841275,-400.0,0.00024657,2]
[383663414,1757077841288,-400.0,0.00024657,2]
[383663415,1757077841297,-400.0,0.00024657,2]
[383663416,1757077841306,-423.46523252,0.00024657,2]
[383663417,1757077841316,-400.0,0.00024657,2]
[383663418,1757077841326,-400.0,0.00024657,2]
[383663419,1757077841337,-400.0,0.00024657,2]
[383663420,1757077841346,-400.0,0.00024657,2]
[383663421,1757077841356,-422.13704719,0.00024657,2]
[383663422,1757077841366,-400.0,0.00024657,2]
[383663423,1757077841376,-400.0,0.00024657,2]
[383663424,1757077841386,-400.0,0.00024657,2]
[383663425,1757077841398,-410.90457669,0.00024657,2]
[383663426,1757077841408,-408.76455546,0.00024657,2]
[383663427,1757077841418,-400.0,0.00024657,2]
[383663428,1757077841428,-400.0,0.00024657,2]
[383663429,1757077841437,-400.0,0.00024657,2]
[383663430,1757077841447,-400.0,0.00024657,2]
[383663431,1757077841457,-400.0,0.00024657,2]
[383663432,1757077841467,-400.0,0.00024657,2]
[383663433,1757077841480,-400.0,0.00024657,2]
[383663434,1757077841490,-400.0,0.00024657,2]
[383663435,1757077841500,-400.0,0.00024657,2]
[383663436,1757077841509,-400.0,0.00024657,2]
[383663437,1757077841523,-400.0,0.00024657,2]
[383663438,1757077841532,-413.80256235,0.00024657,2]
[383663439,1757077841542,-400.0,0.00024657,2]
[383663440,1757077841553,-400.0,0.00024657,2]
[383663441,1757077841562,-679.37,0.00024657,2]
[383663442,1757077841572,-400.0,0.00024657,2]
[383663443,1757077841581,-400.0,0.00024657,2]
[383663444,1757077841590,-400.0,0.00024657,2]
[383663445,1757077841600,-400.0,0.00024657,2]
[383663446,1757077841609,-400.0,0.00024657,2]
[383663447,1757077841619,-400.0,0.00024657,2]
[383663448,1757077841628,-400.0,0.00024657,2]
[383663449,1757077841639,-400.0,0.00024657,2]
[383663450,1757077841648,-400.0,0.00024657,2]
[383663451,1757077841658,-400.0,0.00024657,2]
[383663452,1757077841668,-717.1,0.00024657,2]
[383663453,1757077841679,-345.71120374,0.00024657,2]
[383663454,1757077841688,-400.0,0.00024657,2]
[383663455,1757077841699,-400.0,0.00024657,2]
[383663456,1757077841709,-400.0,0.00024657,2]
[383663457,1757077841719,-400.0,0.00024657,2]
[383663458,1757077841730,-400.0,0.00024657,2]
[383663459,1757077841741,-400.0,0.00024657,2]
[383663460,1757077841751,-400.0,0.00024657,2]
[383663461,1757077841761,-400.0,0.00024657,2]
[383663462,1757077841771,-400.0,0.00024657,2]
[383663463,1757077841780,-400.0,0.00024657,2]
[383663464,1757077841790,-400.0,0.00024657,2]
[383663465,1757077841800,-400.0,0.00024657,2]
[383663466,1757077841810,-400.0,0.00024657,2]
[383663467,1757077841821,-400.0,0.00024657,2]
[383663468,1757077841830,-400.0,0.00024657,2]
[383663469,1757077841840,-400.0,0.00024657,2]
[383663470,1757077841850,-400.0,0.00024657,2]
[383663471,1757077841859,-400.0,0.00024657,2]
[383663472,1757077841869,-400.0,0.00024657,2]
[383663473,1757077841879,-400.0,0.00024657,2]
[383663474,1757077841889,-400.0,0.00024657,2]
[383663475,1757077841899,-400.0,0.00024657,2]
[383663476,1757077841909,-400.0,0.00024657,2]
[383663477,1757077841919,-400.0,0.00024657,2]
[383663478,1757077842162,-400.0,0.00024657,2]
[383663479,1757077842172,-400.0,0.00024657,2]
[383663480,1757077842182,-400.0,0.00024657,2]
[383663481,1757077842192,-400.0,0.00024657,2]
[383663482,1757077842202,-400.0,0.00024657,2]
[383663483,1757077842211,-400.0,0.00024657,2]
[383663484,1757077842221,-400.0,0.00024657,2]
[383663485,1757077842230,-400.0,0.00024657,2]
[383663486,1757077842240,-400.0,0.00024657,2]
[383663487,1757077842249,-410.84454424,0.00024657,2]
[383663488,1757077842259,-1000.0,0.00024657,2]
[383663489,1757077842269,-400.0,0.00024657,2]
[383663490,1757077842279,-400.0,0.00024657,2]
[383663491,1757077842289,-400.0,0.00024657,2]
[383663492,1757077842299,-400.0,0.00024657,2]
[383663493,1757077842309,-305.26319044,0.00024657,2]
[383663494,1757077842319,-400.0,0.00024657,2]
[383663496,1757077842330,-405.76373568,0.00024657,2]
[383663497,1757077842340,-400.0,0.00024657,2]
[383663499,1757077842350,-200.0,0.00024657,2]
[383663500,1757077842361,-400.0,0.00024657,2]
[383663501,1757077842371,-403.79240199,0.00024657,2]
[383663502,1757077842382,-219.19232259,0.00024657,2]
[383663503,1757077842394,-400.0,0.00024657,2]
[383663504,1757077842404,-400.0,0.00024657,2]
[383663505,1757077842414,-400.0,0.00024657,2]
[383663506,1757077842423,-400.0,0.00024657,2]
[383663507,1757077842433,-400.0,0.00024657,2]
[383663508,1757077842444,-500.0,0.00024657,2]
[383663509,1757077842454,-204.13412325,0.00024657,2]
[383663510,1757077842465,-400.0,0.00024657,2]
[383663511,1757077842481,-400.0,0.00024657,2]
[383663512,1757077842491,-400.0,0.00024657,2]
[383663513,1757077842502,-400.0,0.00024657,2]
[383663514,1757077842513,-400.0,0.00024657,2]
[383663515,1757077842522,-400.0,0.00024657,2]
[383663516,1757077842536,-400.0,0.00024657,2]
[383663517,1757077842545,-500.0,0.00024657,2]
[383663518,1757077842555,-408.18350803,0.00024657,2]
[383663519,1757077842566,-400.0,0.00024657,2]
[383663520,1757077842575,-400.0,0.00024657,2]
[383663521,1757077842585,-400.0,0.00024657,2]
[383663522,1757077842595,-400.0,0.00024657,2]
[383663523,1757077842605,-400.0,0.00024657,2]
[383663524,1757077842615,-400.0,0.00024657,2]
[383663525,1757077842625,-262.56,0.00024657,2]
[383663526,1757077842635,-400.0,0.00024657,2]
[383663527,1757077842645,-400.0,0.00024657,2]
[383663528,1757077842656,-400.0,0.00024657,2]
[383663529,1757077842666,-239.73054531,0.00024657,2]
[383663530,1757077842676,-400.0,0.00024657,2]
[383663531,1757077842686,-400.0,0.00024657,2]
[383663532,1757077842696,-400.0,0.00024657,2]
[383663533,1757077842707,-400.0,0.00024657,2]
[383663535,1757077842718,-491.98,0.00024657,2]
[383663537,1757077842727,-400.0,0.00024657,2]
[383663539,1757077842737,-400.0,0.00024657,2]
[383663542,1757077842747,-400.0,0.00024657,2]
[383663544,1757077842756,-400.0,0.00024657,2]
[383663546,1757077842766,-400.0,0.00024657,2]
[383663548,1757077842775,-257.69761396,0.00024657,2]
[383663550,1757077842784,-400.0,0.00024657,2]
[383663552,1757077842794,-400.0,0.00024657,2]
[383663554,1757077842804,-400.0,0.00024657,2]
[383663556,1757077842814,-400.0,0.00024657,2]
[383663558,1757077842824,-400.0,0.00024657,2]
[383663560,1757077842834,-400.0,0.00024657,2]
[383663562,1757077842843,-400.0,0.00024657,2]
[383663564,1757077842853,-400.0,0.00024657,2]
[383663566,1757077842863,-400.0,0.00024657,2]
[383663569,1757077842873,-487.9,0.00024657,2]
[383663571,1757077842882,-400.0,0.00024657,2]
[383663573,1757077842892,-400.0,0.00024657,2]
[383663575,1757077842902,-400.0,0.00024657,2]
[383663577,1757077842912,-400.0,0.00024657,2]
[383663579,1757077842921,-400.0,0.00024657,2]
[383663581,1757077842931,-400.0,0.00024657,2]
[383663583,1757077842941,-400.0,0.00024657,2]
[383663585,1757077842950,-400.0,0.00024657,2]
[383663587,1757077842960,-400.0,0.00024657,2]
[383663588,1757077842970,-400.0,0.00024657,2]
[383663589,1757077842979,-499.507016,0.00024657,2]
[383663590,1757077842993,-229.617861,0.00024657,2]
[383663591,1757077843003,-400.0,0.00024657,2]
[383663592,1757077843013,-400.0,0.00024657,2]
[383663593,1757077843023,-400.0,0.00024657,2]
[383663594,1757077843034,-400.0,0.00024657,2]
[383663595,1757077843044,-400.0,0.00024657,2]
[383663596,1757077843054,-400.0,0.00024657,2]
[383663597,1757077843064,-400.0,0.00024657,2]
[383663598,1757077843075,-400.0,0.00024657,2]
[383663599,1757077843084,-476.42,0.00024657,2]
[383663600,1757077843094,-627.36,0.00024657,2]
[383663601,1757077843104,-400.0,0.00024657,2]
[383663602,1757077843114,-400.0,0.00024657,2]
[383663603,1757077843124,-400.0,0.00024657,2]
[383663604,1757077843134,-400.0,0.00024657,2]
[383663605,1757077843144,-400.0,0.00024657,2]
[383663606,1757077843156,-400.0,0.00024657,2]
[383663607,1757077843165,-400.0,0.00024657,2]
[383663608,1757077843175,-400.0,0.00024657,2]
[383663609,1757077843184,-400.0,0.00024657,2]
[383663610,1757077843194,-400.0,0.00024657,2]
[383663611,1757077843204,-400.0,0.00024657,2]
[383663612,1757077843214,-400.0,0.00024657,2]
[383663613,1757077843224,-400.0,0.00024657,2]
[383663614,1757077843235,-400.0,0.00024657,2]
[383663615,1757077843245,-2042.99,0.00024657,2]
[383663616,1757077843256,-400.0,0.00024657,2]
[383663618,1757077843267,-400.0,0.00024657,2]
[383663619,1757077843277,-400.0,0.00024657,2]
[383663620,1757077843287,-1218.17,0.00024657,2]
[383663621,1757077843298,-400.0,0.00024657,2]
[383663622,1757077843309,-400.0,0.00024657,2]
[383663623,1757077843319,-400.0,0.00024657,2]
[383663624,1757077843330,-400.0,0.00024657,2]
[383663625,1757077843340,-400.0,0.00024657,2]
[383663626,1757077843351,-400.0,0.00024657,2]
[383663627,1757077843361,-500.0,0.00024657,2]
[383663628,1757077843373,-400.0,0.00024657,2]
[383663629,1757077843383,-400.0,0.00024657,2]
[383663630,1757077843393,-400.0,0.00024657,2]
[383663631,1757077843405,-400.0,0.00024657,2]
[383663632,1757077843416,-400.0,0.00024657,2]
[383663633,1757077843426,-522.31106786,0.00024657,2]
[383663634,1757077843439,-400.0,0.00024657,2]
[383663635,1757077843449,-400.0,0.00024657,2]
[383663636,1757077843467,-400.0,0.00024657,2]
[383663637,1757077843486,-343.45045053,0.00024657,2]
[383663638,1757077843500,-400.0,0.00024657,2]
[383663639,1757077843515,-400.0,0.00024657,2]
[383663640,1757077843530,-400.0,0.00024657,2]
[383663641,1757077843546,-400.0,0.00024657,2]
[383663642,1757077843561,-400.0,0.00024657,2]
[383663643,1757077843575,-400.0,0.00024657,2]
[383663644,1757077843587,-197.196985,0.00024657,2]
[383663645,1757077843603,-202.758379,0.00024657,2]
[383663646,1757077843618,-629.0,0.00024657,2]
[383663647,1757077843632,-400.0,0.00024657,2]
[383663648,1757077843648,-400.0,0.00024657,2]
[383663649,1757077843664,-488.58,0.00024657,2]
[383663650,1757077843679,-400.0,0.00024657,2]
[383663651,1757077843695,-400.0,0.00024657,2]
[383663652,1757077843709,-400.0,0.00024657,2]
[383663653,1757077843724,-400.0,0.00024657,2]
[383663654,1757077843739,-400.0,0.00024657,2]
[383663655,1757077843754,-400.0,0.00024657,2]
[383663656,1757077843774,-400.0,0.00024657,2]
[383663657,1757077843791,-1956.42,0.00024657,2]
[383663658,1757077843806,-400.0,0.00024657,2]
[383663659,1757077843818,-207.61,0.00024657,2]
[383663660,1757077843831,-400.0,0.00024657,2]
[383663661,1757077843851,-400.0,0.00024657,2]
[383663662,1757077843863,-400.0,0.00024657,2]
[383663663,1757077843874,-462.88,0.00024657,2]
[383663664,1757077843887,-400.0,0.00024657,2]
[383663665,1757077843902,-400.0,0.00024657,2]
[383663666,1757077843915,-400.0,0.00024657,2]
[383663667,1757077843926,-400.0,0.00024657,2]
[383663668,1757077843938,-400.0,0.00024657,2]
[383663669,1757077843951,-400.0,0.00024657,2]
[383663670,1757077843964,-400.0,0.00024657,2]
[383663671,1757077843978,-400.0,0.00024657,2]
[383663672,1757077843991,-400.0,0.00024657,2]
[383663673,1757077844005,-400.0,0.00024657,2]
[383663674,1757077844020,-400.0,0.00024657,2]
[383663675,1757077844034,-400.0,0.00024657,2]